fUST/lending_fUST_20250111
["ID","MTS","AMOUNT","RATE_DAILY","PERIOD"]
[348485571,1736569843753,-500.0,0.00021917,3]
[348485573,1736569843763,-153.0,0.00021918,2]
[348485575,1736569843772,-432.4415254,0.00021918,2]
[348485577,1736569843782,-309.7010481,0.00021918,2]
[348485579,1736569843791,-153.0,0.00021918,2]
[348485581,1736569843801,-153.0,0.00021918,2]
[348485583,1736569843810,-153.0,0.00021918,2]
[348485585,1736569843820,-153.0,0.00021918,2]
[348485587,1736569843830,-500.0,0.00021973,2]
[348485589,1736569843839,-3172.27949776,0.00022,2]
[348486301,1736570282827,168.2871092,0.00013973,2]
[348486302,1736570455863,217.4,0.00015052,2]
[348486862,1736571037743,-302.69733596,0.00019,2]
[348486864,1736571037754,-179.40056721,0.0001919,2]
[348486866,1736571037766,-150.0,0.00019817,2]
[348486868,1736571037777,-170.6595512,0.00020787,2]
[348486870,1736571037786,-470.329,0.0002137,2]
[348486873,1736571037797,-175.98425637,0.00021817,2]
[348486875,1736571037808,-357.33083813,0.00021916,2]
[348486877,1736571037818,-151.296,0.00021916,2]
[348486878,1736571037828,-300.0,0.00021916,2]
[348486881,1736571037838,-5286.89209556,0.00021917,5]
[348486883,1736571037848,-1040.04077803,0.00021917,5]
[348486884,1736571037859,-154.2,0.00021917,2]
[348486887,1736571037868,-500.0,0.00021917,3]
[348486888,1736571037878,-147.13487109,0.00021917,3]
[348486891,1736571037890,-352.86512891,0.00021917,3]
[348486893,1736571037899,-500.0,0.00021917,3]
[348486895,1736571037910,-500.0,0.00021917,3]
[348486897,1736571037920,-500.0,0.00021917,3]
[348486899,1736571037929,-501.43374336,0.00021917,3]
[348486900,1736571037939,-500.0,0.00021917,3]
[348486902,1736571037949,-501.52506689,0.00021917,3]
[348486904,1736571037958,-500.0,0.00021917,3]
[348486906,1736571037968,-500.62764079,0.00021917,3]
[348486908,1736571037977,-635.60966424,0.00021917,3]
[348486910,1736571037987,-501.70491803,0.00021917,3]
[348486912,1736571037996,-500.0,0.00021917,3]
[348486914,1736571038006,-501.83566884,0.00021917,3]
[348486916,1736571038016,-503.52014126,0.00021917,3]
[348486918,1736571038025,-502.42153033,0.00021917,3]
[348486920,1736571038035,-500.0,0.00021917,3]
[348486922,1736571038045,-501.36667446,0.00021917,3]
[348486924,1736571038055,-501.55317399,0.00021917,3]
[348486926,1736571038064,-500.0,0.00021917,3]
[348486928,1736571038074,-500.0,0.00021917,3]
[348486930,1736571038084,-500.0,0.00021917,3]
[348486932,1736571038093,-179.07636746,0.00021917,3]
[348486935,1736571038114,-322.533074,0.00021917,3]
[348486937,1736571038124,-504.14631049,0.00021917,3]
[348486939,1736571038135,-500.0,0.00021917,3]
[348486941,1736571038145,-563.77046995,0.00021917,3]
[348486943,1736571038154,-500.0,0.00021917,3]
[348486945,1736571038164,-503.62458276,0.00021917,3]
[348486947,1736571038174,-501.88320445,0.00021917,3]
[348486949,1736571038183,-500.0,0.00021917,3]
[348486951,1736571038193,-503.61286388,0.00021917,3]
[348486952,1736571038203,-500.0,0.00021917,3]
[348486954,1736571038213,-500.0,0.00021917,3]
[348486955,1736571038223,-420.70496732,0.00021917,3]
[348486957,1736571038234,-440.398416,0.00021917,3]
[348486959,1736571038244,-501.1689395,0.00021917,3]
[348486960,1736571038253,-501.84340687,0.00021917,3]
[348486962,1736571038263,-500.85788434,0.00021917,3]
[348486964,1736571038276,-506.95701305,0.00021917,3]
[348486965,1736571038286,-501.75782925,0.00021917,3]
[348486966,1736571038296,-500.0,0.00021917,3]
[348486967,1736571038305,-500.0,0.00021917,3]
[348486968,1736571038315,-503.37315167,0.00021917,3]
[348486970,1736571038325,-500.0,0.00021917,3]
[348486972,1736571038335,-502.49140993,0.00021917,3]
[348486973,1736571038344,-500.0,0.00021917,3]
[348486974,1736571038353,-500.0,0.00021917,3]
[348486976,1736571038363,-502.21736148,0.00021917,3]
[348486977,1736571038373,-504.29788174,0.00021917,3]
[348486978,1736571038383,-500.0,0.00021917,3]
[348486979,1736571038392,-500.0,0.00021917,3]
[348486980,1736571038402,-500.0,0.00021917,3]
[348486981,1736571038414,-500.0,0.00021917,3]
[348486982,1736571038424,-500.0,0.00021917,3]
[348486983,1736571038434,-502.77472677,0.00021917,3]
[348486984,1736571038444,-538.18971795,0.00021917,3]
[348486985,1736571038454,-501.36492767,0.00021917,3]
[348486986,1736571038464,-500.0,0.00021917,3]
[348486987,1736571038474,-502.71443671,0.00021917,3]
[348486988,1736571038483,-194.3294565,0.00021917,3]
[348486989,1736571038493,-500.0,0.00021917,3]
[348486990,1736571038503,-503.86706656,0.00021917,3]
[348486991,1736571038512,-503.22986539,0.00021917,3]
[348486992,1736571038522,-500.0,0.00021917,3]
[348486993,1736571038531,-500.0,0.00021917,3]
[348486994,1736571038540,-500.0,0.00021917,3]
[348486995,1736571038550,-389.98278834,0.00021917,3]
[348486996,1736571038565,-112.20018802,0.00021917,3]
[348486997,1736571038574,-500.0,0.00021917,3]
[348486998,1736571038584,-45.67186129,0.00021917,3]
[348487022,1736571039950,-457.63662204,0.00021917,3]
[348487023,1736571039961,-502.01000838,0.00021917,3]
[348487024,1736571039971,-501.86820625,0.00021917,3]
[348487025,1736571039981,-242.36766602,0.00021917,3]
[348487044,1736571045896,-170.735641,0.00020821,2]
[348487045,1736571045906,-152.953855,0.00021917,3]
[348487046,1736571263381,160.699105,0.00013973,2]
[348487050,1736571603137,208.04290424,0.0001501,2]
[348487051,1736572126498,165.611717,0.00013973,2]
[348487094,1736572232033,-160.0,0.0002,14]
[348487095,1736572232044,-1214.0,0.000208,2]
[348487096,1736572232055,-533.1643508,0.00020914,2]
[348487098,1736572232065,-450.925,0.0002137,2]
[348487100,1736572232074,-300.0,0.00021511,2]
[348487102,1736572232084,-2040.662,0.00021512,2]
[348487104,1736572232094,-537.381,0.00021512,2]
[348487106,1736572232103,-2327.798,0.00021512,2]
[348487108,1736572232113,-172.03777002,0.000218,2]
[348487110,1736572232123,-182.597,0.00021816,2]
[348487112,1736572232133,-1414.33761518,0.00021817,3]
[348487114,1736572232142,-732.23495492,0.000219,2]
[348487116,1736572232153,-203.46183657,0.00021904,2]
[348487118,1736572232163,-500.0,0.00021916,2]
[348487119,1736572232173,-500.0,0.00021916,2]
[348487121,1736572232182,-500.0,0.00021916,2]
[348487122,1736572232192,-505.63400589,0.00021916,2]
[348487124,1736572232202,-500.0,0.00021916,2]
[348487125,1736572232212,-500.0,0.00021916,2]
[348487127,1736572232221,-482.42849962,0.00021916,2]
[348487128,1736572232231,-500.0,0.00021916,2]
[348487129,1736572232240,-500.0,0.00021916,2]
[348487130,1736572232250,-575.52892813,0.00021916,2]
[348487131,1736572232260,-500.0,0.00021916,2]
[348487133,1736572232269,-500.0,0.00021916,2]
[348487134,1736572232279,-500.0,0.00021916,2]
[348487135,1736572232288,-500.0,0.00021916,2]
[348487136,1736572232298,-500.0,0.00021916,2]
[348487137,1736572232309,-500.0,0.00021916,2]
[348487138,1736572232319,-500.0,0.00021916,2]
[348487139,1736572232329,-633.55589576,0.00021916,2]
[348487140,1736572232338,-500.0,0.00021916,2]
[348487141,1736572232349,-500.0,0.00021916,2]
[348487142,1736572232358,-500.0,0.00021916,2]
[348487143,1736572232368,-499.99999999,0.00021916,2]
[348487144,1736572232379,-4347.18207652,0.00021917,5]
[348487145,1736572232389,-731.48509915,0.00021917,5]
[348487146,1736572232398,-151.0,0.00021917,2]
[348487147,1736572232408,-151.0,0.00021917,2]
[348487148,1736572232418,-178.334258,0.00021917,2]
[348487149,1736572232428,-178.334258,0.00021917,2]
[348487150,1736572232438,-268.60408031,0.00021917,3]
[348487151,1736572232448,-212.850086,0.00021917,2]
[348487152,1736572232458,-501.04301844,0.00021917,3]
[348487153,1736572232468,-516.06098103,0.00021917,3]
[348487154,1736572232478,-151.0,0.00021917,2]
[348487155,1736572232487,-151.0,0.00021917,2]
[348487156,1736572232496,-509.73882643,0.00021917,3]
[348487157,1736572232506,-500.0,0.00021917,3]
[348487158,1736572232516,-500.0,0.00021917,3]
[348487159,1736572232526,-501.89310889,0.00021917,3]
[348487160,1736572232536,-500.0,0.00021917,3]
[348487161,1736572232546,-500.0,0.00021917,3]
[348487162,1736572232555,-500.0,0.00021917,3]
[348487163,1736572232565,-616.87574267,0.00021917,3]
[348487164,1736572232576,-500.0,0.00021917,3]
[348487165,1736572232587,-500.0,0.00021917,3]
[348487166,1736572232597,-500.0,0.00021917,3]
[348487167,1736572232607,-500.0,0.00021917,3]
[348487168,1736572232616,-500.0,0.00021917,3]
[348487169,1736572232625,-500.83127058,0.00021917,3]
[348487170,1736572232634,-506.30027897,0.00021917,3]
[348487171,1736572232644,-629.8521195,0.00021917,3]
[348487172,1736572232653,-503.15065976,0.00021917,3]
[348487173,1736572232663,-502.91048035,0.00021917,3]
[348487174,1736572232672,-151.0,0.00021917,2]
[348487175,1736572232682,-151.0,0.00021917,2]
[348487176,1736572232691,-500.74622396,0.00021917,3]
[348487177,1736572232701,-509.33622228,0.00021917,3]
[348487178,1736572232710,-500.0,0.00021917,3]
[348487179,1736572232720,-151.0,0.00021917,2]
[348487180,1736572232730,-151.0,0.00021917,2]
[348487181,1736572232739,-500.0,0.00021917,3]
[348487182,1736572232748,-444.26950903,0.00021917,3]
[348487183,1736572232758,-503.21133798,0.00021917,3]
[348487184,1736572232768,-500.0,0.00021917,3]
[348487185,1736572232777,-153.023294,0.00021917,2]
[348487186,1736572232786,-153.023294,0.00021917,2]
[348487187,1736572232796,-153.023294,0.00021917,2]
[348487188,1736572232805,-500.0,0.00021917,3]
[348487189,1736572232815,-153.023294,0.00021917,2]
[348487190,1736572232825,-500.0,0.00021917,3]
[348487191,1736572232834,-500.6658476,0.00021917,3]
[348487192,1736572232843,-500.0,0.00021917,3]
[348487193,1736572232853,-501.41133418,0.00021917,3]
[348487194,1736572232863,-500.0,0.00021917,3]
[348487195,1736572232872,-500.0,0.00021917,3]
[348487196,1736572232883,-500.0,0.00021917,3]
[348487197,1736572232893,-501.39249344,0.00021917,3]
[348487198,1736572232902,-789.531863,0.00021917,2]
[348487199,1736572232912,-789.531863,0.00021917,2]
[348487200,1736572232921,-789.531863,0.00021917,2]
[348487201,1736572232931,-500.0,0.00021917,3]
[348487202,1736572232940,-502.36926252,0.00021917,3]
[348487203,1736572232950,-789.531863,0.00021917,2]
[348487204,1736572232959,-500.0,0.00021917,3]
[348487205,1736572232969,-500.45066154,0.00021917,3]
[348487206,1736572232978,-500.0,0.00021917,3]
[348487207,1736572232988,-500.0,0.00021917,3]
[348487208,1736572232997,-500.0,0.00021917,3]
[348487209,1736572233007,-500.0,0.00021917,3]
[348487210,1736572233017,-151.0,0.00021917,2]
[348487211,1736572233026,-151.0,0.00021917,2]
[348487212,1736572233035,-500.0,0.00021917,3]
[348487213,1736572233045,-503.11372377,0.00021917,3]
[348487214,1736572233055,-500.67221893,0.00021917,3]
[348487215,1736572233065,-502.63111353,0.00021917,3]
[348487216,1736572233075,-500.0,0.00021917,3]
[348487217,1736572233086,-501.50520861,0.00021917,3]
[348487218,1736572233096,-501.06205992,0.00021917,3]
[348487219,1736572233105,-512.41609508,0.00021917,3]
[348487220,1736572233115,-500.0,0.00021917,3]
[348487221,1736572233125,-500.96537545,0.00021917,3]
[348487222,1736572233134,-500.0,0.00021917,3]
[348487223,1736572233144,-451.87460522,0.00021917,3]
[348487224,1736572233404,-49.73493258,0.00021917,3]
[348487225,1736572233414,-500.0,0.00021917,3]
[348487226,1736572233424,-500.99688347,0.00021917,3]
[348487227,1736572233434,-502.57349194,0.00021917,3]
[348487228,1736572233443,-500.0,0.00021917,3]
[348487229,1736572233453,-501.08855486,0.00021917,3]
[348487230,1736572233463,-502.05824988,0.00021917,3]
[348487231,1736572233473,-503.11181298,0.00021917,3]
[348487232,1736572233482,-500.0,0.00021917,3]
[348487233,1736572233491,-268.10980461,0.00021917,3]
[348487234,1736572233501,-500.0,0.00021917,3]
[348487235,1736572233510,-330.36651,0.00021917,2]
[348487236,1736572233520,-330.36651,0.00021917,2]
[348487237,1736572233530,-502.32000164,0.00021917,3]
[348487238,1736572233539,-500.0,0.00021917,3]
[348487239,1736572233549,-501.27304816,0.00021917,3]
[348487240,1736572233558,-502.65019429,0.00021917,3]
[348487241,1736572233568,-31.59275583,0.00021917,3]
[348487242,1736572233584,-470.28300718,0.00021917,3]
[348487243,1736572233593,-330.36651,0.00021917,2]
[348487244,1736572233603,-330.36651,0.00021917,2]
[348487245,1736572233612,-500.67364793,0.00021917,3]
[348487246,1736572233621,-24.63451889,0.00021917,3]
[348487255,1736572237899,-32681.04613128,0.00021817,3]
[348487256,1736572237909,-475.36548111,0.00021917,3]
[348487257,1736572237919,-500.0,0.00021917,3]
[348487258,1736572237929,-524.60530907,0.00021917,3]
[348487259,1736572237939,-500.0,0.00021917,3]
[348487260,1736572237949,-500.0,0.00021917,3]
[348487261,1736572237958,-500.98346123,0.00021917,3]
[348487262,1736572237968,-300.0,0.00021917,3]
[348487263,1736572237978,-500.0,0.00021917,3]
[348487264,1736572237987,-503.91838335,0.00021917,3]
[348487265,1736572237997,-238.688404,0.00021917,2]
[348487266,1736572238007,-500.0,0.00021917,3]
[348487267,1736572238017,-238.688404,0.00021917,2]
[348487268,1736572238028,-500.0,0.00021917,3]
[348487269,1736572238038,-500.0,0.00021917,3]
[348487271,1736572238048,-500.0,0.00021917,3]
[348487272,1736572238057,-501.03524657,0.00021917,3]
[348487273,1736572238067,-500.0,0.00021917,3]
[348487274,1736572238077,-500.0,0.00021917,3]
[348487275,1736572238086,-501.6399594,0.00021917,3]
[348487276,1736572238095,-1485.722998,0.00021917,2]
[348487277,1736572238106,-1485.722998,0.00021917,2]
[348487278,1736572238115,-1485.722998,0.00021917,2]
[348487279,1736572238125,-1485.722998,0.00021917,2]
[348487280,1736572238135,-500.0,0.00021917,3]
[348487281,1736572238145,-503.12086118,0.00021917,3]
[348487282,1736572238154,-500.0,0.00021917,3]
[348487283,1736572238163,-508.18666614,0.00021917,3]
[348487284,1736572238173,-543.54615467,0.00021917,3]
[348487285,1736572238183,-501.10359361,0.00021917,3]
[348487286,1736572238192,-500.0,0.00021917,3]
[348487287,1736572238202,-501.53638405,0.00021917,3]
[348487288,1736572238211,-500.0,0.00021917,3]
[348487289,1736572238221,-515.60824988,0.00021917,3]
[348487290,1736572238230,-500.6900788,0.00021917,3]
[348487291,1736572238239,-504.36471196,0.00021917,3]
[348487292,1736572238250,-502.35936134,0.00021917,3]
[348487293,1736572238259,-500.70736665,0.00021917,3]
[348487294,1736572238268,-500.76937005,0.00021917,3]
[348487295,1736572238277,-500.82344743,0.00021917,3]
[348487296,1736572238287,-501.39778286,0.00021917,3]
[348487297,1736572238296,-500.0,0.00021917,3]
[348487298,1736572238306,-500.0,0.00021917,3]
[348487299,1736572238315,-503.74251991,0.00021917,3]
[348487300,1736572238324,-500.0,0.00021917,3]
[348487301,1736572238334,-500.82368109,0.00021917,3]
[348487302,1736572238343,-500.0,0.00021917,3]
[348487303,1736572238352,-500.0,0.00021917,3]
[348487304,1736572238362,-503.1354867,0.00021917,3]
[348487305,1736572238371,-500.0,0.00021917,3]
[348487306,1736572238381,-501.13563182,0.00021917,3]
[348487307,1736572238390,-500.0,0.00021917,3]
[348487308,1736572238399,-500.0,0.00021917,3]
[348487309,1736572238408,-501.70755314,0.00021917,3]
[348487310,1736572238418,-500.89258466,0.00021917,3]
[348487311,1736572238427,-500.0,0.00021917,3]
[348487312,1736572238437,-500.0,0.00021917,3]
[348487313,1736572238446,-500.96404708,0.00021917,3]
[348487314,1736572238456,-504.18180644,0.00021917,3]
[348487315,1736572238466,-500.91120885,0.00021917,3]
[348487316,1736572238475,-500.0,0.00021917,3]
[348487317,1736572238485,-500.0,0.00021917,3]
[348487318,1736572238495,-500.0,0.00021917,3]
[348487319,1736572238505,-500.0,0.00021917,3]
[348487320,1736572238515,-501.54027204,0.00021917,3]
[348487321,1736572238524,-500.0,0.00021917,3]
[348487322,1736572238534,-151.0,0.00021917,2]
[348487323,1736572238544,-1000.0,0.00021917,3]
[348487324,1736572238554,-151.0,0.00021917,2]
[348487325,1736572238563,-151.0,0.00021917,2]
[348487326,1736572238573,-500.0,0.00021917,3]
[348487327,1736572238584,-504.22582117,0.00021917,3]
[348487328,1736572238594,-501.37167399,0.00021917,3]
[348487329,1736572238604,-603.10378462,0.00021917,3]
[348487330,1736572238614,-503.30373898,0.00021917,3]
[348487331,1736572238623,-502.30917696,0.00021917,3]
[348487332,1736572238632,-151.0,0.00021917,2]
[348487333,1736572238642,-151.0,0.00021917,2]
[348487334,1736572238651,-251.040563,0.00021917,2]
[348487335,1736572238660,-251.040563,0.00021917,2]
[348487336,1736572238669,-501.48134775,0.00021917,3]
[348487337,1736572238679,-504.94577039,0.00021917,3]
[348487338,1736572238688,-502.76225049,0.00021917,3]
[348487339,1736572238697,-500.0,0.00021917,3]
[348487340,1736572238707,-151.0,0.00021917,2]
[348487341,1736572238717,-151.0,0.00021917,2]
[348487342,1736572238726,-510.62695236,0.00021917,3]
[348487343,1736572238735,-503.21533379,0.00021917,3]
[348487344,1736572238746,-151.0,0.00021917,2]
[348487345,1736572238755,-202.127438,0.00021917,2]
[348487346,1736572238765,-501.13276652,0.00021917,3]
[348487347,1736572238774,-605.751609,0.00021917,2]
[348487348,1736572238783,-605.751609,0.00021917,2]
[348487349,1736572238793,-605.751609,0.00021917,2]
[348487350,1736572238802,-500.0,0.00021917,3]
[348487351,1736572238812,-500.0,0.00021917,3]
[348487352,1736572238821,-605.751609,0.00021917,2]
[348487353,1736572238830,-500.0,0.00021917,3]
[348487354,1736572238840,-500.0,0.00021917,3]
[348487355,1736572238850,-605.751609,0.00021917,2]
[348487356,1736572238859,-500.0,0.00021917,3]
[348487357,1736572238868,-605.751609,0.00021917,2]
[348487358,1736572238878,-500.0,0.00021917,3]
[348487359,1736572238888,-500.0,0.00021917,3]
[348487360,1736572238898,-500.0,0.00021917,3]
[348487361,1736572238909,-500.0,0.00021917,3]
[348487362,1736572238918,-500.0,0.00021917,3]
[348487363,1736572238929,-535.05515354,0.00021917,3]
[348487364,1736572238938,-505.64462158,0.00021917,3]
[348487365,1736572238948,-502.23120486,0.00021917,3]
[348487366,1736572238958,-500.0,0.00021917,3]
[348487367,1736572238967,-500.0,0.00021917,3]
[348487368,1736572238977,-500.0,0.00021917,3]
[348487369,1736572238986,-330.05213425,0.00021917,3]
[348487370,1736572239005,-169.94786575,0.00021917,3]
[348487371,1736572239016,-529.47830481,0.00021917,3]
[348487372,1736572239025,-503.13372581,0.00021917,3]
[348487373,1736572239034,-502.2561095,0.00021917,3]
[348487374,1736572239045,-500.52887677,0.00021917,3]
[348487375,1736572239055,-500.0,0.00021917,3]
[348487376,1736572239065,-500.0,0.00021917,3]
[348487377,1736572239074,-500.0,0.00021917,3]
[348487378,1736572239083,-501.92608341,0.00021917,3]
[348487379,1736572239093,-500.0,0.00021917,3]
[348487380,1736572239103,-500.0,0.00021917,3]
[348487381,1736572239112,-500.0,0.00021917,3]
[348487382,1736572239122,-500.0,0.00021917,3]
[348487383,1736572239131,-500.0,0.00021917,3]
[348487384,1736572239141,-500.0,0.00021917,3]
[348487385,1736572239150,-500.0,0.00021917,3]
[348487386,1736572239160,-500.0,0.00021917,3]
[348487387,1736572239169,-500.0,0.00021917,3]
[348487388,1736572239180,-500.0,0.00021917,3]
[348487389,1736572239189,-500.0,0.00021917,3]
[348487390,1736572239198,-500.0,0.00021917,3]
[348487391,1736572239208,-500.0,0.00021917,3]
[348487392,1736572239217,-505.67587856,0.00021917,3]
[348487393,1736572239227,-500.0,0.00021917,3]
[348487394,1736572239237,-501.88452558,0.00021917,3]
[348487395,1736572239246,-500.0,0.00021917,3]
[348487396,1736572239255,-500.0,0.00021917,3]
[348487397,1736572239265,-150.0,0.00021917,3]
[348487398,1736572239275,-500.0,0.00021917,3]
[348487399,1736572239284,-500.0,0.00021917,3]
[348487400,1736572239294,-502.11186445,0.00021917,3]
[348487401,1736572239303,-503.31967351,0.00021917,3]
[348487402,1736572239313,-500.0,0.00021917,3]
[348487403,1736572239323,-604.39,0.00021917,3]
[348487404,1736572239333,-500.0,0.00021917,3]
[348487405,1736572239343,-501.65699006,0.00021917,3]
[348487406,1736572239352,-500.0,0.00021917,3]
[348487407,1736572239363,-500.0,0.00021917,3]
[348487408,1736572239373,-500.0,0.00021917,3]
[348487409,1736572239383,-500.0,0.00021917,3]
[348487410,1736572239392,-500.89876206,0.00021917,3]
[348487411,1736572239402,-500.0,0.00021917,3]
[348487412,1736572239412,-359.75983208,0.00021917,3]
[348487413,1736572239427,-140.24016792,0.00021917,3]
[348487414,1736572239437,-500.97273646,0.00021917,3]
[348487415,1736572239447,-183.88546674,0.00021917,3]
[348487416,1736572239459,-316.11453326,0.00021917,3]
[348487417,1736572239470,-500.0,0.00021917,3]
[348487418,1736572239481,-503.2614018,0.00021917,3]
[348487419,1736572239490,-500.0,0.00021917,3]
[348487420,1736572239500,-506.35723551,0.00021917,3]
[348487421,1736572239509,-503.15233654,0.00021917,3]
[348487422,1736572239519,-500.88602919,0.00021917,3]
[348487423,1736572239529,-914.112644,0.00021917,2]
[348487424,1736572239538,-418.1158197,0.00021917,3]
[348487642,1736572243041,-81.8841803,0.00021917,3]
[348487643,1736572243051,-587.96872001,0.00021917,2]
[348487721,1736572245946,-326.14392399,0.00021917,2]
[348487722,1736572245956,-47.51069725,0.00021917,3]
[348487724,1736573125842,160.231987,0.00013973,2]
[348487749,1736573432366,-300.0,0.00018349,2]
[348487751,1736573432376,-10087.60472938,0.0001835,2]
[348487753,1736573432387,-186.68504635,0.000189,2]
[348487755,1736573432397,-313.18781855,0.00019,2]
[348487757,1736573432406,-420.0,0.00020014,2]
[348487759,1736573432416,-1699.63149,0.00020474,2]
[348487761,1736573432426,-454.141,0.000209,2]
[348487763,1736573432436,-398.8765751,0.00021707,2]
[348487765,1736573432446,-172.03777001,0.00021717,2]
[348487767,1736573432455,-328.13734813,0.00021816,2]
[348487769,1736573432466,-500.0,0.00021816,2]
[348487771,1736573432475,-500.0,0.00021816,2]
[348487773,1736573432485,-500.0,0.00021816,2]
[348487775,1736573432495,-585.69045201,0.00021816,2]
[348487789,1736573432644,-500.0,0.00021816,2]
[348487790,1736573432654,-500.0,0.00021816,2]
[348487791,1736573432665,-500.0,0.00021816,2]
[348487792,1736573432675,-500.0,0.00021816,2]
[348487793,1736573432684,-500.0,0.00021816,2]
[348487794,1736573432695,-186.78619406,0.00021816,2]
[348487795,1736573432705,-208.782,0.00021816,2]
[348487796,1736573432714,-2269.61459737,0.00021817,2]
[348487797,1736573432724,-32669.45228244,0.00021817,3]
[348487798,1736573432733,-587.0,0.00021829,2]
[348487799,1736573432743,-6428.91427471,0.00021879,2]
[348487800,1736573432756,-938.17652518,0.00021879,2]
[348487801,1736573432768,-2310.33289385,0.00021879,2]
[348487802,1736573432778,-6990.0,0.000219,4]
[348487803,1736573432788,-364.1684882,0.000219,2]
[348487804,1736573432798,-707.82712307,0.000219,2]
[348487805,1736573432808,-2173.59103826,0.00021917,5]
[348487806,1736573432817,-365.74254957,0.00021917,5]
[348487807,1736573432827,-7114.1033301,0.00021917,5]
[348487808,1736573432837,-151.0,0.00021917,2]
[348487809,1736573432847,-151.0,0.00021917,2]
[348487810,1736573432857,-151.0,0.00021917,2]
[348487811,1736573432866,-151.0,0.00021917,2]
[348487812,1736573432875,-225.519527,0.00021917,2]
[348487813,1736573432886,-225.519527,0.00021917,2]
[348487814,1736573432895,-225.519527,0.00021917,2]
[348487815,1736573432905,-225.519527,0.00021917,2]
[348487816,1736573432915,-225.519527,0.00021917,2]
[348487817,1736573432924,-225.519527,0.00021917,2]
[348487818,1736573432934,-156.869956,0.00021917,2]
[348487819,1736573432945,-287.248605,0.00021917,2]
[348487820,1736573432955,-271.831048,0.00021917,2]
[348487821,1736573432966,-151.0,0.00021917,2]
[348487822,1736573432976,-151.0,0.00021917,2]
[348487823,1736573432986,-151.0,0.00021917,2]
[348487824,1736573432995,-151.0,0.00021917,2]
[348487825,1736573433005,-151.0,0.00021917,2]
[348487826,1736573433015,-151.0,0.00021917,2]
[348487827,1736573433025,-151.0,0.00021917,2]
[348487828,1736573433034,-151.0,0.00021917,2]
[348487829,1736573433045,-151.641441,0.00021917,2]
[348487830,1736573433054,-151.756403,0.00021917,2]
[348487831,1736573433066,-151.0,0.00021917,2]
[348487832,1736573433076,-151.0,0.00021917,2]
[348487833,1736573433087,-151.0,0.00021917,2]
[348487834,1736573433100,-151.0,0.00021917,2]
[348487835,1736573433110,-151.0,0.00021917,2]
[348487836,1736573433120,-151.0,0.00021917,2]
[348487837,1736573433130,-498.209079,0.00021917,2]
[348487838,1736573433139,-498.209079,0.00021917,2]
[348487839,1736573433149,-498.209079,0.00021917,2]
[348487840,1736573433159,-498.209079,0.00021917,2]
[348487841,1736573433169,-498.209079,0.00021917,2]
[348487842,1736573433179,-498.209079,0.00021917,2]
[348487843,1736573433190,-1104.752961,0.00021917,2]
[348487844,1736573433199,-1104.752961,0.00021917,2]
[348487845,1736573433209,-1104.752961,0.00021917,2]
[348487846,1736573433220,-1104.752961,0.00021917,2]
[348487847,1736573433229,-1104.752961,0.00021917,2]
[348487848,1736573433240,-1104.752961,0.00021917,2]
[348487849,1736573433249,-500.0,0.00021917,3]
[348487850,1736573433259,-503.37545032,0.00021917,3]
[348487851,1736573433270,-497.40060163,0.00021917,3]
[348487852,1736573433280,-501.72011896,0.00021917,3]
[348487853,1736573433290,-503.45161485,0.00021917,3]
[348487854,1736573433300,-500.0,0.00021917,3]
[348487855,1736573433310,-151.0,0.00021917,2]
[348487856,1736573433320,-151.0,0.00021917,2]
[348487857,1736573433331,-151.0,0.00021917,2]